[Event "26th OIBM 2023"]
[Site "Gmund am Tegernsee"]
[Date "2023.11.01"]
[Round "5.33"]
[White "Kobold, Jonathan"]
[Black "Cordes, Hans-Joerg"]
[Result "0-1"]
[ECO "B22"]
[WhiteElo "1901"]
[BlackElo "2146"]
[Annotator "ChessBase"]
[PlyCount "72"]
[EventDate "2023.10.04"]
[EventType "swiss"]
[EventCountry "GER"]
[SourceTitle "playchess.com"]
[Source "ChessBase"]
[SourceQuality "1"]
[TimeControl "40/5400+30:1800+30"]

1. e4 {[%emt 0:00:05]} c5 {[%emt 0:00:12]} 2. c3 {[%emt 0:00:07]} e6 {[%emt 0:00:20]} 3. d4 {[%emt 0:00:29]} d5 {[%emt 0:00:07]} 4. exd5 {[%emt 0:00:34]} exd5 {[%emt 0:00:07]} 5. Nf3 {[%emt 0:01:32]} Nc6 {[%emt 0:00:18]} 6. Bb5 {[%emt 0:01:37]} Bd6 {[%emt 0:00:29]} 7. dxc5 {[%emt 0:06:42]} Bxc5 {[%emt 0:00:08]} 8. O-O {[%emt 0:00:14]} Nf6 {[%emt 0:00:28]} 9. Qe2+ {[%emt 0:02:13]} Be6 {[%emt 0:00:27]} 10. Nd4 {[%emt 0:02:31]} O-O {[%emt 0:00:40]} 11. Nxe6 {[%emt 0:04:29]} fxe6 {[%emt 0:00:13]} 12. Qxe6+ {[%emt 0:00:07]} Kh8 {[%emt 0:00:06]} 13. Bxc6 {[%emt 0:00:20]} bxc6 {[%emt 0:00:15]} 14. Be3 {[%emt 0:01:06]} Re8 {[%emt 0:25:41]} 15. Qxc6 {[%emt 0:23:12]} Bxe3 {[%emt 0:01:11]} 16. fxe3 {[%emt 0:00:22]} Qb8 {[%emt 0:07:32]} 17. Nd2 {[%emt 0:10:27]} Qxb2 {[%emt 0:06:49]} 18. Nb3 {[%emt 0:04:36]} Rac8 {[%emt 0:18:05]} 19. Qa6 {[%emt 0:08:00]} Qxc3 {[%emt 0:03:13]} 20. Qxa7 {[%emt 0:00:34]} Ra8 {[%emt 0:06:28]} 21. Qd4 {[%emt 0:04:56]} Rxe3 {[%emt 0:01:08]} 22. Qxc3 {[%emt 0:00:08]} Rxc3 {[%emt 0:00:07]} 23. Rf3 {[%emt 0:00:06]} Rc4 {[%emt 0:00:43]} 24. Rd3 {[%emt 0:01:00]} Kg8 {[%emt 0:00:44]} 25. Kf1 {[%emt 0:02:07]} Kf7 {[%emt 0:02:22]} 26. Ke2 {[%emt 0:01:48]} Ke7 {[%emt 0:01:29]} 27. Nd2 {[%emt 0:01:54]} Rca4 {[%emt 0:01:50]} 28. a3 {[%emt 0:00:12]} Kd6 {[%emt 0:00:14]} 29. Rb3 {[%emt 0:01:12]} R8a7 {[%emt 0:00:45]} 30. Kd3 {[%emt 0:00:39]} Nd7 {[%emt 0:04:23]} 31. Kc2 {[%emt 0:00:50]} Ne5 {[%emt 0:00:58]} 32. Kb2 {[%emt 0:02:54]} Rd4 {[%emt 0:05:43]} 33. Kc2 {[%emt 0:00:50]} Rf4 {[%emt 0:02:13]} 34. g3 {[%emt 0:04:54]} Rf2 {[%emt 0:00:43]} 35. h4 {[%emt 0:00:07]} Nc4 {[%emt 0:03:06]} 36. Rd3 {[%emt 0:01:32]} Rc7 {[%emt 0:09:13]} 0-1

[Event "26th OIBM 2023"]
[Site "Gmund am Tegernsee"]
[Date "2023.11.01"]
[Round "5.34"]
[White "Navarro Jahnke, Leo"]
[Black "Waldschmidt, Georg"]
[Result "1/2-1/2"]
[ECO "D02"]
[WhiteElo "1884"]
[BlackElo "2141"]
[Annotator "NA"]
[PlyCount "62"]
[EventDate "2023.10.04"]
[EventType "swiss"]
[EventCountry "GER"]
[SourceTitle "playchess.com"]
[Source "ChessBase"]
[SourceQuality "1"]
[TimeControl "40/5400+30:1800+30"]

1. d4 {[%emt 0:00:03]} d5 {[%emt 0:00:16]} 2. Nf3 {[%emt 0:00:27]} Nf6 {[%emt 0:00:09]} 3. Bf4 {[%emt 0:00:20]} e6 {[%emt 0:00:50]} 4. e3 {[%emt 0:00:06]} Bd6 {[%emt 0:00:08]} 5. Bg3 {[%emt 0:00:06]} O-O {[%emt 0:00:13]} 6. Nbd2 {[%emt 0:00:23]} c5 {[%emt 0:00:18]} 7. c3 {[%emt 0:00:05]} Qc7 {[%emt 0:00:11]} 8. Bd3 {[%emt 0:04:59]} Nbd7 {[%emt 0:00:17]} 9. O-O {[%emt 0:12:10]} Bxg3 {[%emt 0:00:23]} 10. hxg3 {[%emt 0:00:07]} e5 {[%emt 0:00:12]} 11. dxe5 {[%emt 0:00:38]} Nxe5 {[%emt 0:00:09]} 12. Nxe5 {[%emt 0:00:10]} Qxe5 {[%emt 0:00:06]} 13. Nf3 {[%emt 0:00:06]} Qe7 {[%emt 0:00:10]} 14. Qc2 {[%emt 0:09:05]} g6 {[%emt 0:04:11]} 15. c4 {[%emt 0:02:49]} Be6 {[%emt 0:04:19]} 16. cxd5 {[%emt 0:03:39]} Bxd5 {[%emt 0:09:47]} 17. Rac1 {[%emt 0:09:04]} b6 {[%emt 0:00:20]} 18. Nd2 {[%emt 0:06:58]} Rad8 {[%emt 0:03:12]} 19. Be2 {[%emt 0:08:33]} Rd7 {[%emt 0:06:49]} 20. Rfd1 {[%emt 0:03:10]} Rfd8 {[%emt 0:00:53]} 21. Bb5 {[%emt 0:01:55]} Rd6 {[%emt 0:00:43]} 22. Nc4 {[%emt 0:13:42]} Be4 {[%emt 0:03:17]} 23. Qa4 {[%emt 0:01:05]} Rd5 {[%emt 0:06:24]} 24. Rxd5 {[%emt 0:01:00]} Rxd5 {[%emt 0:04:53]} 25. Bc6 {[%emt 0:04:27]} Rd8 {[%emt 0:06:53]} 26. Bxe4 {[%emt 0:00:27]} Nxe4 {[%emt 0:00:08]} 27. Rd1 {[%emt 0:01:30]} Rxd1+ {[%emt 0:16:01]} 28. Qxd1 {[%emt 0:00:06]} Qf6 {[%emt 0:00:18]} 29. Qc2 {[%emt 0:01:38]} Qf5 {[%emt 0:04:27]} 30. g4 {[%emt 0:01:45]} Qd5 {[%emt 0:00:30]} 31. f3 {[%emt 0:00:56]} Nd6 {[%emt 0:02:16]} 1/2-1/2

[Event "26th OIBM 2023"]
[Site "Gmund am Tegernsee"]
[Date "2023.11.01"]
[Round "5.35"]
[White "Epding, Olaf"]
[Black "Zieger, Bernd"]
[Result "0-1"]
[ECO "C15"]
[WhiteElo "2134"]
[BlackElo "1873"]
[Annotator "NA"]
[PlyCount "69"]
[EventDate "2023.10.04"]
[EventType "swiss"]
[EventCountry "GER"]
[SourceTitle "playchess.com"]
[Source "ChessBase"]
[SourceQuality "1"]
[TimeControl "40/5400+30:1800+30"]

1. e4 {[%emt 0:00:06]} e6 {[%emt 0:00:11]} 2. d4 {[%emt 0:00:14]} d5 {[%emt 0:00:25]} 3. Nc3 {[%emt 0:00:14]} Bb4 {[%emt 0:00:43]} 4. Nge2 {[%emt 0:00:28]} dxe4 {[%emt 0:02:11]} 5. a3 {[%emt 0:00:16]} Be7 {[%emt 0:00:35]} 6. Nxe4 {[%emt 0:00:36]} Nf6 {[%emt 0:00:26]} 7. N2g3 {[%emt 0:04:38]} Nbd7 {[%emt 0:00:30]} 8. Bd3 {[%emt 0:02:40]} b6 {[%emt 0:04:37]} 9. O-O {[%emt 0:08:14]} Bb7 {[%emt 0:01:16]} 10. Be3 {[%emt 0:04:28]} O-O {[%emt 0:00:21]} 11. Nxf6+ {[%emt 0:01:03]} Nxf6 {[%emt 0:00:12]} 12. c4 {[%emt 0:00:12]} c5 {[%emt 0:02:10]} 13. dxc5 {[%emt 0:00:37]} Bxc5 {[%emt 0:00:58]} 14. Bxc5 {[%emt 0:01:27]} bxc5 {[%emt 0:00:07]} 15. b4 {[%emt 0:05:08]} Qc7 {[%emt 0:03:37]} 16. b5 {[%emt 0:04:07]} Rfd8 {[%emt 0:03:54]} 17. Qc2 {[%emt 0:04:05]} Rd4 {[%emt 0:03:53]} 18. Rfd1 {[%emt 0:01:56]} h5 {[%emt 0:00:38]} 19. h3 {[%emt 0:05:52]} Qe5 {[%emt 0:05:41]} 20. Bf1 {[%emt 0:04:03]} h4 {[%emt 0:01:10]} 21. Ne2 {[%emt 0:01:18]} Rdd8 {[%emt 0:06:28]} 22. a4 {[%emt 0:02:11]} Ne4 {[%emt 0:05:21]} 23. Rxd8+ {[%emt 0:02:45]} Rxd8 {[%emt 0:00:08]} 24. Rd1 {[%emt 0:00:09]} Rxd1 {[%emt 0:00:14]} 25. Qxd1 {[%emt 0:00:06]} Nd6 {[%emt 0:11:43]} 26. Qd2 {[%emt 0:25:52]} g5 {[%emt 0:07:31]} 27. Qc3 {[%emt 0:02:16]} Qf5 {[%emt 0:09:28]} 28. Nc1 {[%emt 0:01:25]} Ne4 {[%emt 0:02:03]} 29. Qc2 {[%emt 0:03:09]} Qf4 {[%emt 0:06:47]} 30. Nb3 {[%emt 0:02:07]} g4 {[%emt 0:07:49]} 31. hxg4 {[%emt 0:01:07]} h3 {[%emt 0:00:40]} 32. g3 {[%emt 0:11:23]} Nxg3 {[%emt 0:00:51]} 33. Bxh3 {[%emt 0:00:12]} Qf3 {[%emt 0:01:19]} 34. Kh2 {[%emt 0:00:07]} Ne2 {[%emt 0:01:07]} 35. Bf1 {[%emt 0:03:29]} 0-1

[Event "26th OIBM 2023"]
[Site "Gmund am Tegernsee"]
[Date "2023.11.01"]
[Round "5.36"]
[White "Eichler, Alexander"]
[Black "Fahland, Matthias"]
[Result "1-0"]
[ECO "B31"]
[WhiteElo "1860"]
[BlackElo "2133"]
[Annotator "NA"]
[PlyCount "95"]
[EventDate "2023.10.04"]
[EventType "swiss"]
[EventCountry "GER"]
[SourceTitle "playchess.com"]
[Source "ChessBase"]
[SourceQuality "1"]
[TimeControl "40/5400+30:1800+30"]

1. e4 {[%emt 0:00:03]} c5 {[%emt 0:00:08]} 2. Nf3 {[%emt 0:00:04]} Nc6 {[%emt 0:00:18]} 3. Bb5 {[%emt 0:00:20]} g6 {[%emt 0:00:13]} 4. Bxc6 {[%emt 0:00:35]} dxc6 {[%emt 0:00:10]} 5. O-O {[%emt 0:00:38]} Bg7 {[%emt 0:00:23]} 6. d3 {[%emt 0:00:59]} Bg4 {[%emt 0:05:39]} 7. h3 {[%emt 0:00:28]} Bxf3 {[%emt 0:00:10]} 8. Qxf3 {[%emt 0:00:02]} e5 {[%emt 0:01:01]} 9. Be3 {[%emt 0:02:22]} b6 {[%emt 0:01:50]} 10. Nd2 {[%emt 0:02:45]} Nf6 {[%emt 0:04:25]} 11. Nc4 {[%emt 0:04:43]} Qc7 {[%emt 0:00:12]} 12. a4 {[%emt 0:04:57]} a5 {[%emt 0:02:29]} 13. Qg3 {[%emt 0:09:21]} Nh5 {[%emt 0:03:53]} 14. Qg4 {[%emt 0:06:17]} Nf4 {[%emt 0:04:56]} 15. Bxf4 {[%emt 0:00:24]} exf4 {[%emt 0:00:09]} 16. e5 {[%emt 0:00:08]} O-O {[%emt 0:05:22]} 17. Qxf4 {[%emt 0:06:14]} f6 {[%emt 0:00:20]} 18. Nd6 {[%emt 0:09:51]} fxe5 {[%emt 0:00:30]} 19. Qc4+ {[%emt 0:00:06]} Kh8 {[%emt 0:00:08]} 20. Ne4 {[%emt 0:00:10]} Rae8 {[%emt 0:02:16]} 21. c3 {[%emt 0:07:50]} Qd7 {[%emt 0:08:37]} 22. Rab1 {[%emt 0:04:19]} Qd5 {[%emt 0:14:32]} 23. b4 {[%emt 0:06:10]} cxb4 {[%emt 0:03:54]} 24. cxb4 {[%emt 0:00:34]} Rc8 {[%emt 0:02:08]} 25. bxa5 {[%emt 0:10:30]} bxa5 {[%emt 0:00:13]} 26. Rb7 {[%emt 0:02:42]} Rfd8 {[%emt 0:02:20]} 27. Nc5 {[%emt 0:02:21]} Bf8 {[%emt 0:03:16]} 28. Rc1 {[%emt 0:01:55]} Rb8 {[%emt 0:06:28]} 29. Qxd5 {[%emt 0:01:26]} cxd5 {[%emt 0:00:30]} 30. Rxb8 {[%emt 0:00:02]} Rxb8 {[%emt 0:00:13]} 31. Nd7 {[%emt 0:00:03]} Re8 {[%emt 0:00:53]} 32. Nxf8 {[%emt 0:00:03]} Rxf8 {[%emt 0:00:05]} 33. Rc5 {[%emt 0:00:02]} Rd8 {[%emt 0:00:58]} 34. Rxa5 {[%emt 0:00:09]} Kg7 {[%emt 0:00:59]} 35. Kf1 {[%emt 0:04:51]} h5 {[%emt 0:03:02]} 36. Ra6 {[%emt 0:03:31]} Kf7 {[%emt 0:04:58]} 37. a5 {[%emt 0:04:22]} Rc8 {[%emt 0:00:07]} 38. Rd6 {[%emt 0:00:34]} Rc5 {[%emt 0:00:10]} 39. a6 {[%emt 0:00:08]} Ra5 {[%emt 0:00:04]} 40. Ke2 {[%emt 0:00:42]} d4 {[%emt 0:03:17]} 41. Kf3 {[%emt 0:35:56]} Ra2 {[%emt 0:30:10]} 42. Rb6 {[%emt 0:00:20]} Ra1 {[%emt 0:01:10]} 43. Ke4 {[%emt 0:02:30]} Re1+ {[%emt 0:02:08]} 44. Kd5 {[%emt 0:00:04]} e4 {[%emt 0:00:09]} 45. a7 {[%emt 0:00:06]} exd3 {[%emt 0:00:21]} 46. a8=Q {[%emt 0:00:17]} d2 {[%emt 0:00:06]} 47. Qa7+ {[%emt 0:00:48]} Re7 {[%emt 0:18:40]} 48. Qa5 {[%emt 0:01:48]} 1-0

[Event "26th OIBM 2023"]
[Site "Gmund am Tegernsee"]
[Date "2023.11.01"]
[Round "5.37"]
[White "Lerchl, Clemens"]
[Black "Sieglen, Joachim"]
[Result "1/2-1/2"]
[ECO "B33"]
[WhiteElo "1850"]
[BlackElo "2110"]
[Annotator "ChessBase"]
[PlyCount "86"]
[EventDate "2023.10.04"]
[EventType "swiss"]
[EventCountry "GER"]
[SourceTitle "playchess.com"]
[Source "ChessBase"]
[SourceQuality "1"]
[TimeControl "40/5400+30:1800+30"]

1. e4 {[%emt 0:00:03]} c5 {[%emt 0:00:04]} 2. Nf3 {[%emt 0:00:07]} Nc6 {[%emt 0:00:10]} 3. d4 {[%emt 0:00:11]} cxd4 {[%emt 0:00:05]} 4. Nxd4 {[%emt 0:00:04]} Nf6 {[%emt 0:00:08]} 5. Nc3 {[%emt 0:00:05]} e5 {[%emt 0:00:05]} 6. Ndb5 {[%emt 0:00:26]} d6 {[%emt 0:00:06]} 7. Bg5 {[%emt 0:00:30]} a6 {[%emt 0:00:11]} 8. Na3 {[%emt 0:00:06]} b5 {[%emt 0:01:10]} 9. Nd5 {[%emt 0:00:14]} Be7 {[%emt 0:00:36]} 10. Bxf6 {[%emt 0:00:50]} Bxf6 {[%emt 0:00:03]} 11. c3 {[%emt 0:00:22]} Rb8 {[%emt 0:08:42]} 12. Nc2 {[%emt 0:12:34]} O-O {[%emt 0:02:34]} 13. Be2 {[%emt 0:04:57]} Bg5 {[%emt 0:00:32]} 14. O-O {[%emt 0:03:02]} Bd7 {[%emt 0:19:07]} 15. Qd3 {[%emt 0:32:02]} a5 {[%emt 0:08:14]} 16. a3 {[%emt 0:00:50]} a4 {[%emt 0:00:52]} 17. Ndb4 {[%emt 0:01:08]} Be7 {[%emt 0:04:28]} 18. Nxc6 {[%emt 0:00:42]} Bxc6 {[%emt 0:00:02]} 19. Nb4 {[%emt 0:00:36]} Bd7 {[%emt 0:06:25]} 20. Rad1 {[%emt 0:01:49]} Qc8 {[%emt 0:02:20]} 21. Nd5 {[%emt 0:06:48]} Bd8 {[%emt 0:00:25]} 22. Ne3 {[%emt 0:01:49]} Be7 {[%emt 0:01:22]} 23. Nd5 {[%emt 0:01:39]} Bg5 {[%emt 0:02:06]} 24. Qg3 {[%emt 0:00:42]} Bd8 {[%emt 0:16:58]} 25. Ne3 {[%emt 0:01:15]} Qc6 {[%emt 0:04:34]} 26. Bg4 {[%emt 0:04:34]} Be6 {[%emt 0:00:46]} 27. Qh3 {[%emt 0:03:08]} Bb3 {[%emt 0:01:29]} 28. Rd2 {[%emt 0:05:48]} Bg5 {[%emt 0:03:06]} 29. Qg3 {[%emt 0:09:53]} Qxe4 {[%emt 0:05:17]} 30. Rxd6 {[%emt 0:02:40]} Qf4 {[%emt 0:01:40]} 31. Re1 {[%emt 0:03:00]} Qxg3 {[%emt 0:01:16]} 32. hxg3 {[%emt 0:00:20]} Rfd8 {[%emt 0:00:44]} 33. Rxd8+ {[%emt 0:00:32]} Rxd8 {[%emt 0:00:17]} 34. Bd1 {[%emt 0:00:36]} Be6 {[%emt 0:01:54]} 35. Be2 {[%emt 0:00:51]} Bxe3 {[%emt 0:01:55]} 36. fxe3 {[%emt 0:00:03]} Bc4 {[%emt 0:00:26]} 37. Rd1 {[%emt 0:01:34]} Rxd1+ {[%emt 0:01:33]} 38. Bxd1 {[%emt 0:00:04]} Bd3 {[%emt 0:03:11]} 39. Kf2 {[%emt 0:00:45]} f5 {[%emt 0:00:15]} 40. g4 {[%emt 0:03:01]} fxg4 {[%emt 0:02:30]} 41. b3 {[%emt 0:07:15]} axb3 {[%emt 0:04:31]} 42. Bxb3+ {[%emt 0:00:04]} Kf8 {[%emt 0:00:06]} 43. Kg3 {[%emt 0:00:28]} Ke7 {[%emt 0:06:37]} 1/2-1/2

[Event "26th OIBM 2023"]
[Site "Gmund am Tegernsee"]
[Date "2023.11.01"]
[Round "5.38"]
[White "Bilandzic, Ante"]
[Black "Kraemer, Stefan"]
[Result "1/2-1/2"]
[ECO "D02"]
[WhiteElo "1840"]
[BlackElo "2105"]
[Annotator "ChessBase"]
[PlyCount "81"]
[EventDate "2023.10.04"]
[EventType "swiss"]
[EventCountry "GER"]
[SourceTitle "playchess.com"]
[Source "ChessBase"]
[SourceQuality "1"]
[TimeControl "40/5400+30:1800+30"]

1. d4 {[%emt 0:00:02]} e6 {[%emt 0:02:40]} 2. Nf3 {[%emt 0:00:09]} Nf6 {[%emt 0:00:19]} 3. Bf4 {[%emt 0:00:05]} d5 {[%emt 0:01:02]} 4. Nbd2 {[%emt 0:00:16]} c5 {[%emt 0:01:20]} 5. c3 {[%emt 0:01:11]} Nc6 {[%emt 0:01:49]} 6. e3 {[%emt 0:00:01]} Nh5 {[%emt 0:02:04]} 7. Bg3 {[%emt 0:06:13]} Nxg3 {[%emt 0:07:27]} 8. hxg3 {[%emt 0:00:02]} Bd6 {[%emt 0:00:26]} 9. Bd3 {[%emt 0:00:07]} g6 {[%emt 0:00:32]} 10. Qe2 {[%emt 0:03:50]} O-O {[%emt 0:14:23]} 11. O-O-O {[%emt 0:04:27]} e5 {[%emt 0:06:16]} 12. dxe5 {[%emt 0:00:19]} Nxe5 {[%emt 0:00:25]} 13. Nxe5 {[%emt 0:00:06]} Bxe5 {[%emt 0:00:03]} 14. Rxh7 {[%emt 0:06:20]} Kxh7 {[%emt 0:11:21]} 15. Qh5+ {[%emt 0:00:10]} Kg7 {[%emt 0:00:38]} 16. Qxe5+ {[%emt 0:00:25]} Qf6 {[%emt 0:03:10]} 17. Qc7 {[%emt 0:03:39]} c4 {[%emt 0:02:01]} 18. Bc2 {[%emt 0:05:38]} b5 {[%emt 0:06:20]} 19. e4 {[%emt 0:13:39]} Be6 {[%emt 0:04:31]} 20. e5 {[%emt 0:03:45]} Qd8 {[%emt 0:00:31]} 21. Qc5 {[%emt 0:00:01]} Rb8 {[%emt 0:03:21]} 22. Ne4 {[%emt 0:07:37]} Rh8 {[%emt 0:09:32]} 23. Nf6 {[%emt 0:06:26]} Qb6 {[%emt 0:01:45]} 24. Qxb6 {[%emt 0:00:22]} Rxb6 {[%emt 0:00:11]} 25. Nxd5 {[%emt 0:00:13]} Bxd5 {[%emt 0:00:29]} 26. Rxd5 {[%emt 0:00:02]} Rh2 {[%emt 0:00:24]} 27. Be4 {[%emt 0:01:18]} Rh1+ {[%emt 0:01:11]} 28. Kd2 {[%emt 0:06:46]} f6 {[%emt 0:07:07]} 29. exf6+ {[%emt 0:12:40]} Rxf6 {[%emt 0:00:05]} 30. f4 {[%emt 0:00:09]} a6 {[%emt 0:00:30]} 31. Rd7+ {[%emt 0:10:01]} Kf8 {[%emt 0:02:27]} 32. Rd4 {[%emt 0:02:45]} Rf1 {[%emt 0:00:57]} 33. a4 {[%emt 0:00:31]} Rf2+ {[%emt 0:00:18]} 34. Kc1 {[%emt 0:00:07]} Re6 {[%emt 0:00:56]} 35. axb5 {[%emt 0:01:28]} axb5 {[%emt 0:00:07]} 36. Kb1 {[%emt 0:02:23]} Rf1+ {[%emt 0:04:57]} 37. Kc2 {[%emt 0:00:12]} Rf2+ {[%emt 0:00:04]} 38. Kb1 {[%emt 0:00:02]} Ke7 {[%emt 0:05:42]} 39. Kc1 {[%emt 0:02:34]} Rf1+ {[%emt 0:00:08]} 40. Kc2 {[%emt 0:00:04]} Rf2+ {[%emt 0:00:05]} 41. Kb1 {[%emt 0:30:06]} 1/2-1/2

[Event "26th OIBM 2023"]
[Site "Gmund am Tegernsee"]
[Date "2023.11.01"]
[Round "5.39"]
[White "Langner, Robin"]
[Black "Gohla, Ulf"]
[Result "0-1"]
[ECO "E16"]
[WhiteElo "1803"]
[BlackElo "2102"]
[Annotator "ChessBase"]
[PlyCount "120"]
[EventDate "2023.10.04"]
[EventType "swiss"]
[EventCountry "GER"]
[SourceTitle "playchess.com"]
[Source "ChessBase"]
[SourceQuality "1"]
[TimeControl "40/5400+30:1800+30"]

1. d4 {[%emt 0:00:03]} Nf6 {[%emt 0:00:06]} 2. c4 {[%emt 0:00:13]} e6 {[%emt 0:00:03]} 3. g3 {[%emt 0:00:10]} d5 {[%emt 0:00:42]} 4. Bg2 {[%emt 0:00:04]} c6 {[%emt 0:00:11]} 5. Nf3 {[%emt 0:00:08]} Be7 {[%emt 0:00:46]} 6. O-O {[%emt 0:00:07]} Nbd7 {[%emt 0:00:32]} 7. Nc3 {[%emt 0:00:08]} b6 {[%emt 0:11:37]} 8. Bf4 {[%emt 0:05:09]} O-O {[%emt 0:08:52]} 9. Rc1 {[%emt 0:00:36]} Bb7 {[%emt 0:00:32]} 10. cxd5 {[%emt 0:05:07]} Nxd5 {[%emt 0:00:17]} 11. Ne5 {[%emt 0:05:39]} Nxe5 {[%emt 0:07:13]} 12. Nxd5 {[%emt 0:06:37]} exd5 {[%emt 0:07:09]} 13. Bxe5 {[%emt 0:01:21]} Re8 {[%emt 0:00:42]} 14. Bf4 {[%emt 0:05:26]} Bf6 {[%emt 0:05:15]} 15. Bf3 {[%emt 0:05:33]} Qe7 {[%emt 0:08:21]} 16. Qa4 {[%emt 0:06:07]} Qe6 {[%emt 0:09:00]} 17. Rfd1 {[%emt 0:13:48]} g5 {[%emt 0:09:20]} 18. Be3 {[%emt 0:04:58]} Kg7 {[%emt 0:04:41]} 19. b4 {[%emt 0:03:46]} g4 {[%emt 0:03:29]} 20. Bg2 {[%emt 0:00:31]} Qd7 {[%emt 0:03:14]} 21. Rc3 {[%emt 0:04:00]} a5 {[%emt 0:01:28]} 22. Rb1 {[%emt 0:01:29]} b5 {[%emt 0:01:07]} 23. Qc2 {[%emt 0:00:49]} axb4 {[%emt 0:00:32]} 24. Rxb4 {[%emt 0:00:33]} Be7 {[%emt 0:02:16]} 25. Rb2 {[%emt 0:02:30]} b4 {[%emt 0:01:18]} 26. Rd3 {[%emt 0:00:02]} Ba6 {[%emt 0:01:10]} 27. Rd1 {[%emt 0:01:52]} Bc4 {[%emt 0:00:21]} 28. Bf1 {[%emt 0:00:28]} Ra3 {[%emt 0:01:43]} 29. Ra1 {[%emt 0:01:02]} Rea8 {[%emt 0:00:38]} 30. Bd2 {[%emt 0:00:40]} b3 {[%emt 0:00:21]} 31. axb3 {[%emt 0:02:00]} Rxa1 {[%emt 0:01:04]} 32. bxc4 {[%emt 0:00:02]} Qe6 {[%emt 0:01:54]} 33. c5 {[%emt 0:02:20]} Qe4 {[%emt 0:00:56]} 34. Qxe4 {[%emt 0:01:52]} dxe4 {[%emt 0:00:02]} 35. f4 {[%emt 0:00:44]} Rd1 {[%emt 0:04:10]} 36. Kf2 {[%emt 0:00:54]} Raa1 {[%emt 0:00:14]} 37. Bg2 {[%emt 0:00:01]} f5 {[%emt 0:00:08]} 38. e3 {[%emt 0:00:54]} h5 {[%emt 0:00:51]} 39. h4 {[%emt 0:01:55]} Kf7 {[%emt 0:00:16]} 40. Bc3 {[%emt 0:00:53]} Rdc1 {[%emt 0:02:55]} 41. Bd2 {[%emt 0:30:04]} Rg1 {[%emt 0:32:10]} 42. Bc3 {[%emt 0:00:28]} Rgc1 {[%emt 0:01:53]} 43. Bd2 {[%emt 0:00:05]} Rd1 {[%emt 0:01:09]} 44. Bc3 {[%emt 0:00:02]} Ke6 {[%emt 0:00:00]} 45. Rd2 {[%emt 0:00:00]} Rxd2+ {[%emt 0:00:00]} 46. Bxd2 {[%emt 0:00:00]} Kd5 {[%emt 0:00:00]} 47. Bf1 {[%emt 0:00:00]} Bd8 {[%emt 0:00:00]} 48. Be1 {[%emt 0:00:00]} Ra2+ {[%emt 0:00:00]} 49. Be2 {[%emt 0:00:00]} Bxh4 {[%emt 0:00:00]} 50. gxh4 {[%emt 0:00:00]} g3+ {[%emt 0:00:00]} 51. Kxg3 {[%emt 0:00:00]} Rxe2 {[%emt 0:00:00]} 52. Kh3 {[%emt 0:00:00]} Kc4 {[%emt 0:00:00]} 53. Bf2 {[%emt 0:00:00]} Kd3 {[%emt 0:00:00]} 54. Kg2 {[%emt 0:00:00]} Ra2 {[%emt 0:00:00]} 55. Kf1 {[%emt 0:00:00]} Rb2 {[%emt 0:00:00]} 56. Bg1 Ra2 {[%emt 0:00:00]} 57. Ke1 {[%emt 0:00:00]} Ra1+ {[%emt 0:00:00]} 58. Kf2 Kd2 {[%emt 0:00:00]} 59. Kg2 {[%emt 0:00:00]} Ke2 {[%emt 0:00:00]} 60. Bf2 {[%emt 0:00:00]} Ra8 {[%emt 0:00:00]} 0-1

[Event "26th OIBM 2023"]
[Site "Gmund am Tegernsee"]
[Date "2023.11.01"]
[Round "5.40"]
[White "Mohylnyi, Stepan"]
[Black "Bartali, Simone"]
[Result "1-0"]
[ECO "B52"]
[WhiteElo "2120"]
[BlackElo "1793"]
[Annotator "NA"]
[PlyCount "57"]
[EventDate "2023.10.04"]
[EventType "swiss"]
[EventCountry "GER"]
[SourceTitle "playchess.com"]
[Source "ChessBase"]
[SourceQuality "1"]
[TimeControl "40/5400+30:1800+30"]

1. e4 {[%emt 0:00:04]} c5 {[%emt 0:00:08]} 2. Nf3 {[%emt 0:00:11]} d6 {[%emt 0:00:12]} 3. Bb5+ {[%emt 0:00:04]} Bd7 {[%emt 0:00:22]} 4. Bxd7+ {[%emt 0:00:07]} Qxd7 {[%emt 0:00:18]} 5. d4 {[%emt 0:00:05]} cxd4 {[%emt 0:00:15]} 6. Qxd4 {[%emt 0:00:20]} Nc6 {[%emt 0:00:26]} 7. Qd3 {[%emt 0:00:06]} Rc8 {[%emt 0:01:18]} 8. c4 {[%emt 0:00:18]} Nf6 {[%emt 0:00:24]} 9. Nc3 {[%emt 0:01:08]} e6 {[%emt 0:01:08]} 10. b3 {[%emt 0:00:19]} Be7 {[%emt 0:00:31]} 11. O-O {[%emt 0:01:21]} O-O {[%emt 0:00:38]} 12. Bb2 {[%emt 0:00:18]} Rfd8 {[%emt 0:02:07]} 13. Rfd1 {[%emt 0:03:55]} a6 {[%emt 0:01:50]} 14. Rac1 {[%emt 0:02:23]} Qc7 {[%emt 0:07:07]} 15. a3 {[%emt 0:06:24]} Na5 {[%emt 0:02:27]} 16. Ne2 {[%emt 0:00:31]} Ng4 {[%emt 0:13:50]} 17. Nfd4 {[%emt 0:19:00]} Qb6 {[%emt 0:05:31]} 18. Qh3 {[%emt 0:10:05]} Ne5 {[%emt 0:08:08]} 19. Rb1 {[%emt 0:13:21]} Bf6 {[%emt 0:03:57]} 20. f4 {[%emt 0:08:09]} Nec6 {[%emt 0:04:55]} 21. Kh1 {[%emt 0:00:14]} e5 {[%emt 0:20:28]} 22. Nf5 {[%emt 0:05:43]} Qc7 {[%emt 0:04:21]} 23. Nc3 {[%emt 0:01:21]} Ne7 {[%emt 0:01:15]} 24. Nxe7+ {[%emt 0:00:39]} Qxe7 {[%emt 0:01:49]} 25. Nd5 {[%emt 0:00:10]} Qf8 {[%emt 0:01:07]} 26. Nxf6+ {[%emt 0:00:38]} gxf6 {[%emt 0:00:08]} 27. Rd3 {[%emt 0:00:06]} Nc6 {[%emt 0:02:10]} 28. Rg3+ {[%emt 0:00:12]} Kh8 {[%emt 0:00:06]} 29. Qh4 {[%emt 0:00:06]} 1-0

[Event "26th OIBM 2023"]
[Site "Gmund am Tegernsee"]
[Date "2023.11.01"]
[Round "5.41"]
[White "Schaffarczyk, Andre"]
[Black "Groessing, Daniel-Yosuke"]
[Result "1-0"]
[ECO "A28"]
[WhiteElo "2118"]
[BlackElo "1755"]
[Annotator "NA"]
[PlyCount "45"]
[EventDate "2023.10.04"]
[EventType "swiss"]
[EventCountry "GER"]
[SourceTitle "playchess.com"]
[Source "ChessBase"]
[SourceQuality "1"]
[TimeControl "40/5400+30:1800+30"]

1. c4 {[%emt 0:00:06]} e5 {[%emt 0:00:20]} 2. Nc3 {[%emt 0:00:10]} Nf6 {[%emt 0:00:09]} 3. Nf3 {[%emt 0:00:20]} Nc6 {[%emt 0:00:09]} 4. e4 {[%emt 0:00:15]} Bc5 {[%emt 0:02:57]} 5. Nxe5 {[%emt 0:00:10]} Nxe5 {[%emt 0:00:22]} 6. d4 {[%emt 0:00:08]} Bd6 {[%emt 0:00:28]} 7. c5 {[%emt 0:18:57]} Bxc5 {[%emt 0:14:31]} 8. dxe5 {[%emt 0:22:33]} Ng8 {[%emt 0:09:59]} 9. Bc4 {[%emt 0:01:58]} Ne7 {[%emt 0:04:20]} 10. Bg5 {[%emt 0:05:26]} O-O {[%emt 0:08:13]} 11. Qh5 {[%emt 0:02:52]} c6 {[%emt 0:14:14]} 12. O-O-O {[%emt 0:05:48]} b5 {[%emt 0:02:29]} 13. Bb3 {[%emt 0:16:28]} Qc7 {[%emt 0:06:52]} 14. f4 {[%emt 0:02:42]} Be3+ {[%emt 0:21:22]} 15. Kb1 {[%emt 0:00:25]} Ng6 {[%emt 0:01:16]} 16. Rhf1 {[%emt 0:03:43]} b4 {[%emt 0:03:40]} 17. Rf3 {[%emt 0:03:39]} d5 {[%emt 0:04:20]} 18. exd6 {[%emt 0:00:16]} Qb7 {[%emt 0:01:08]} 19. Rxe3 {[%emt 0:04:42]} bxc3 {[%emt 0:00:18]} 20. Rxc3 {[%emt 0:00:42]} Bd7 {[%emt 0:00:51]} 21. f5 {[%emt 0:01:09]} Ne5 {[%emt 0:00:48]} 22. Rh3 {[%emt 0:01:19]} h6 {[%emt 0:00:28]} 23. Bxh6 {[%emt 0:01:28]} 1-0